bitfinex-derivatives/quotes_BTCF0:USTF0_20251030
["timestamp","ask_amount","ask_price","bid_price","bid_amount"]
[1761843416672,0.61957575,108170.0,108160.0,0.42113]
[1761843417472,0.65280933,108170.0,108160.0,0.42113]
[1761843419275,0.57966226,108170.0,108160.0,0.42113]
[1761843419678,1.06215094,108170.0,108160.0,0.06033]
[1761843420071,0.77215094,108170.0,108160.0,0.06033]
[1761843420671,0.57966226,108170.0,108160.0,0.42113]
[1761843421471,0.77215094,108170.0,108160.0,0.42113]
[1761843421971,1.02215094,108170.0,108160.0,0.06033]
[1761843422470,1.62215094,108170.0,108160.0,0.02482]
[1761843422977,1.62491094,108170.0,108160.0,0.002]
[1761843423275,1.62215094,108170.0,108160.0,0.002]
[1761843423471,1.57543962,108170.0,108160.0,0.002]
[1761843423672,1.69479769,108170.0,108160.0,0.002]
[1761843423868,1.50230901,108170.0,108160.0,0.002]
[1761843424069,1.39959961,108170.0,108160.0,0.002]
[1761843424274,1.40235961,108170.0,108160.0,0.002]
[1761843424680,0.0341,108150.0,108140.0,0.45252181]
[1761843424874,0.88370147,108150.0,108140.0,0.45252181]
[1761843425276,1.10370147,108150.0,108140.0,0.45252181]
[1761843425477,1.10370147,108150.0,108140.0,0.05844]
[1761843425673,0.04613,108140.0,108130.0,0.03328181]
[1761843425878,0.94854015,108140.0,108130.0,0.03328181]
[1761843426181,0.0341,108130.0,108120.0,0.45169181]
[1761843426481,0.54626868,108130.0,108120.0,0.45169181]
[1761843427382,0.59457177,108130.0,108120.0,0.45169181]
[1761843427780,0.05904411,108140.0,108130.0,0.05761]
[1761843427978,0.95951588,108140.0,108130.0,0.41841]
[1761843428283,0.93457177,108140.0,108130.0,0.41841]
[1761843428476,0.94405096,108140.0,108130.0,0.41841]
[1761843429182,0.70325919,108140.0,108130.0,0.41841]
[1761843429489,0.0841,108140.0,108130.0,0.41841]
[1761843429675,0.40382,108140.0,108130.0,0.41841]
[1761843430076,0.35482,108140.0,108130.0,0.41841]
[1761843430277,0.35582,108140.0,108130.0,0.41841]
[1761843431180,0.35482,108140.0,108130.0,0.41841]
[1761843432180,0.3629121,108140.0,108130.0,0.41941]
[1761843432388,0.60370387,108140.0,108130.0,0.41941]
[1761843435084,0.59461177,108140.0,108130.0,0.41941]
[1761843436583,0.72461177,108140.0,108130.0,0.41941]
[1761843439279,0.73379494,108140.0,108130.0,0.41941]
[1761843439890,0.60379494,108140.0,108130.0,0.41941]
[1761843440594,0.87379494,108140.0,108130.0,0.41941]
[1761843440795,0.87379494,108140.0,108130.0,0.05861]
[1761843441192,0.87379494,108140.0,108130.0,0.04559]
[1761843441391,0.87379494,108140.0,108130.0,0.05888]
[1761843441597,1.23459494,108140.0,108130.0,0.05888]
[1761843442685,1.23459494,108140.0,108130.0,0.04559]
[1761843442888,1.23459494,108140.0,108130.0,0.05888]
[1761843443584,1.24662494,108140.0,108130.0,0.001]
[1761843443789,0.88858494,108140.0,108130.0,0.001]
[1761843443992,0.0341,108120.0,108110.0,0.45002181]
[1761843444188,0.27489177,108120.0,108110.0,0.45002181]
[1761843444398,0.59465177,108120.0,108110.0,0.45002181]
[1761843445386,0.75753953,108120.0,108110.0,0.45002181]
[1761843445592,0.75753953,108120.0,108110.0,0.45102181]
[1761843445892,0.75753953,108120.0,108110.0,0.45302181]
[1761843446288,1.44335953,108120.0,108110.0,0.03628181]
[1761843446488,1.44335953,108120.0,108110.0,0.003]
[1761843446698,1.03466,108120.0,108110.0,0.05921]
[1761843447001,1.43833953,108120.0,108110.0,0.05921]
[1761843447194,1.44335953,108120.0,108110.0,0.04592]
[1761843447501,1.42508076,108120.0,108110.0,0.002]
[1761843447694,1.42784076,108120.0,108110.0,0.002]
[1761843448100,1.42884076,108120.0,108110.0,0.002]
[1761843449204,0.0341,108110.0,108100.0,0.39408181]
[1761843449401,0.56680038,108110.0,108100.0,0.39408181]
[1761843450097,0.92760038,108110.0,108100.0,0.03328181]
[1761843450604,1.12306076,108110.0,108100.0,0.03328181]
[1761843450900,0.0341,108100.0,108090.0,0.1258187]
[1761843451107,1.20943038,108100.0,108090.0,0.03328181]
[1761843451290,1.20943038,108100.0,108090.0,0.0828987]
[1761843451490,1.20943038,108100.0,108090.0,0.03328181]
[1761843451692,1.40213076,108100.0,108090.0,0.03328181]
[1761843451898,1.40213076,108100.0,108080.0,0.42370689]
[1761843451899,0.0341,108090.0,108080.0,0.45029181]
[1761843452096,0.0341,108090.0,108080.0,0.41701]
[1761843452097,0.55950076,108090.0,108080.0,0.41701]
[1761843452494,0.41950076,108090.0,108080.0,0.41701]
[1761843452805,0.24680038,108090.0,108080.0,0.41701]
[1761843453009,0.22680038,108090.0,108080.0,0.41701]
[1761843453305,0.22680038,108090.0,108080.0,0.41801]
[1761843454105,0.2361206,108090.0,108080.0,0.41801]
[1761843455505,0.2361206,108090.0,108080.0,0.41901]
[1761843456106,0.2361206,108090.0,108080.0,0.41801]
[1761843456903,0.73882098,108090.0,108080.0,0.41801]
[1761843458104,0.57882098,108090.0,108080.0,0.41801]
[1761843458505,0.74882098,108090.0,108080.0,0.41801]
[1761843459110,0.55882098,108090.0,108080.0,0.41801]
[1761843459305,0.44882098,108090.0,108080.0,0.41801]
[1761843459708,0.2561206,108090.0,108080.0,0.41801]
[1761843460307,0.19270038,108090.0,108080.0,0.41801]
[1761843460510,0.22680038,108100.0,108090.0,0.05621]
[1761843460698,0.83668038,108100.0,108090.0,0.05621]
[1761843461312,0.84582791,108100.0,108090.0,0.05621]
[1761843462007,0.30594791,108100.0,108090.0,0.41701]
[1761843462207,0.62582791,108100.0,108090.0,0.41701]
[1761843462511,0.62682791,108100.0,108090.0,0.41701]
[1761843462712,0.62782791,108100.0,108090.0,0.41701]
[1761843463104,0.62682791,108100.0,108090.0,0.41701]
[1761843463402,0.62582791,108100.0,108090.0,0.41801]
[1761843464911,0.42398,108100.0,108090.0,0.41801]
[1761843465109,0.29680038,108100.0,108090.0,0.41801]
[1761843465310,0.61668038,108100.0,108090.0,0.41801]
[1761843465800,0.63796757,108100.0,108090.0,0.41801]
[1761843467105,0.41984411,108120.0,108110.0,0.05621]
[1761843467410,1.45641809,108120.0,108110.0,0.05621]
[1761843467814,1.46551494,108120.0,108110.0,0.05621]
[1761843468213,1.46651494,108120.0,108110.0,0.05621]
[1761843469812,1.46851494,108120.0,108110.0,0.05621]
[1761843471312,1.50177375,108120.0,108110.0,0.05621]
[1761843472000,0.0341,108110.0,108100.0,0.41801]
[1761843472202,0.96569953,108110.0,108100.0,0.02111]
[1761843472401,0.98699275,108110.0,108100.0,0.0575]
[1761843472813,0.95373394,108110.0,108100.0,0.0575]
[1761843473621,0.95473394,108110.0,108100.0,0.0575]
[1761843474404,0.95573394,108110.0,108100.0,0.0575]
[1761843474608,0.59493394,108110.0,108100.0,0.4183]
[1761843474813,0.59477394,108110.0,108100.0,0.4183]
[1761843475010,0.61477394,108110.0,108100.0,0.4183]
[1761843475313,0.59477394,108110.0,108100.0,0.4183]
[1761843475816,0.61477394,108110.0,108100.0,0.4183]
[1761843476007,0.59377394,108110.0,108100.0,0.4193]
[1761843476210,0.23983394,108110.0,108100.0,1.0193]
[1761843476407,0.55967394,108110.0,108100.0,1.0193]
[1761843476719,0.59277394,108110.0,108100.0,1.0193]
[1761843477112,0.36597356,108110.0,108100.0,1.0193]
[1761843477312,0.36597356,108110.0,108100.0,0.4193]
[1761843477613,0.34113322,108110.0,108100.0,0.4183]
[1761843477814,0.34113322,108110.0,108100.0,0.4193]
[1761843478113,0.35818322,108110.0,108100.0,0.4193]
[1761843478706,0.5508836,108110.0,108100.0,0.4193]
[1761843478902,0.5679336,108110.0,108100.0,0.4193]
[1761843479107,0.5879336,108110.0,108100.0,0.4193]
[1761843479309,0.61277394,108110.0,108100.0,0.4193]
[1761843480611,0.89277394,108110.0,108100.0,0.0585]
[1761843480811,0.89277394,108110.0,108100.0,0.02211]
[1761843481312,0.89277394,108110.0,108100.0,0.0585]
[1761843481713,0.89477394,108110.0,108100.0,0.0575]
[1761843481912,1.25557394,108110.0,108100.0,0.0575]
[1761843482720,0.89477394,108110.0,108100.0,0.0575]
[1761843484416,0.0341,108100.0,108090.0,0.41801]
[1761843484718,0.2480936,108100.0,108090.0,0.41801]
[1761843485319,0.2680936,108100.0,108090.0,0.41801]
[1761843485515,0.2480936,108100.0,108090.0,0.41801]
[1761843485817,0.2680936,108100.0,108090.0,0.41901]
[1761843487411,0.2480936,108100.0,108090.0,0.41901]
[1761843487611,0.2680936,108100.0,108090.0,0.41901]
[1761843489118,0.17293394,108100.0,108090.0,0.41901]
[1761843489317,0.19293394,108100.0,108090.0,0.41901]
[1761843491218,0.44293394,108100.0,108090.0,0.41901]
[1761843491922,0.19293394,108100.0,108090.0,0.41901]
[1761843492121,0.19310562,108100.0,108090.0,0.41901]
[1761843492815,0.44310562,108100.0,108090.0,0.41901]
[1761843493428,0.45310562,108100.0,108090.0,0.41901]
[1761843494718,0.32630524,108100.0,108090.0,0.41901]
[1761843494919,0.51900562,108100.0,108090.0,0.41901]
[1761843496620,0.41900562,108100.0,108090.0,0.41901]
[1761843497721,0.71389881,108110.0,108100.0,0.05759]
[1761843498016,0.86579919,108110.0,108100.0,0.05759]
[1761843499818,0.86679919,108110.0,108100.0,0.05759]
[1761843500021,0.86779919,108110.0,108100.0,0.05759]
[1761843500823,0.11525881,108110.0,108100.0,0.41839]
[1761843501125,0.43509881,108110.0,108100.0,0.41839]
[1761843501824,0.62779919,108110.0,108100.0,0.41839]
[1761843502012,0.59454038,108110.0,108100.0,0.41839]
[1761843503826,0.49454038,108110.0,108100.0,0.41839]
[1761843504023,0.51454038,108110.0,108100.0,0.41839]
[1761843504423,0.49454038,108110.0,108100.0,0.41939]
[1761843504726,0.51454038,108110.0,108100.0,0.41939]
[1761843506022,0.03325881,108120.0,108110.0,0.02188]
[1761843506225,0.56575919,108120.0,108110.0,0.4194]
[1761843507228,0.54575919,108120.0,108110.0,0.4194]
[1761843507420,0.75838665,108120.0,108110.0,0.4194]
[1761843508021,0.73838665,108120.0,108110.0,0.4194]
[1761843508222,0.75838665,108120.0,108110.0,0.4194]
[1761843508623,0.73838665,108120.0,108110.0,0.4194]
[1761843508824,0.75838665,108120.0,108110.0,0.4194]
[1761843509424,0.75838665,108120.0,108110.0,0.4204]
[1761843509726,0.75838665,108120.0,108110.0,0.4214]
[1761843509929,0.75838665,108120.0,108110.0,0.4204]
[1761843510229,0.75838665,108120.0,108110.0,0.4214]
[1761843511136,0.73838665,108120.0,108110.0,0.4214]
[1761843511433,0.65838665,108120.0,108110.0,0.4214]
[1761843512020,0.46572273,108120.0,108110.0,0.4214]
[1761843512226,0.63838665,108120.0,108110.0,0.4214]
[1761843512531,0.65838665,108120.0,108110.0,0.4214]
[1761843512934,0.63838665,108120.0,108110.0,0.4214]
[1761843513728,0.65838665,108120.0,108110.0,0.4214]
[1761843514221,0.63838665,108120.0,108110.0,0.4214]
[1761843514426,0.44572273,108120.0,108110.0,0.61406392]
[1761843514632,0.31976,108120.0,108110.0,0.61406392]
[1761843514920,0.51242392,108120.0,108110.0,0.61406392]
[1761843516035,0.51242392,108120.0,108110.0,0.61506392]
[1761843516628,0.51242392,108120.0,108110.0,0.61606392]
[1761843518534,0.19266392,108120.0,108110.0,0.61606392]
[1761843518932,0.19266392,108120.0,108110.0,0.4234]
[1761843519739,0.32916554,108130.0,108110.0,0.4234]
[1761843519939,0.32916554,108130.0,108120.0,0.4194]
[1761843520127,0.52182946,108130.0,108120.0,0.4194]
[1761843520836,0.54182946,108130.0,108120.0,0.4194]
[1761843521138,0.52182946,108130.0,108120.0,0.4204]
[1761843521340,0.54182946,108130.0,108120.0,0.4204]
[1761843521550,0.52182946,108130.0,108120.0,0.4204]
[1761843522537,0.52182946,108130.0,108120.0,0.4214]
[1761843523243,0.51242392,108130.0,108120.0,0.4214]
[1761843525444,0.52190493,108130.0,108120.0,0.4214]
[1761843525840,0.63190493,108130.0,108120.0,0.4214]
[1761843526147,0.52190493,108130.0,108120.0,0.4214]
[1761843527148,0.51242392,108130.0,108120.0,0.4214]
[1761843528446,0.25200011,108140.0,108130.0,0.0586]
[1761843528652,0.2591497,108160.0,108150.0,0.0586]
[1761843528841,0.51532784,108160.0,108150.0,0.73908]
[1761843529042,0.38532784,108160.0,108150.0,0.73908]
[1761843529753,0.39460113,108160.0,108150.0,0.73908]
[1761843531148,0.38532784,108160.0,108150.0,0.4194]
[1761843531348,0.38532784,108160.0,108150.0,0.73908]
[1761843532052,0.19266392,108160.0,108150.0,0.73908]
[1761843533156,0.38532784,108160.0,108150.0,0.73908]
[1761843533546,0.38532784,108160.0,108150.0,0.74108]
[1761843534854,0.00940492,108170.0,108160.0,0.05667]
[1761843535058,0.32,108170.0,108160.0,0.05667]
[1761843535950,0.70532784,108170.0,108160.0,0.05667]
[1761843537547,0.71452117,108170.0,108160.0,0.05667]
[1761843538148,0.32919333,108170.0,108160.0,0.05667]
[1761843538352,0.71452117,108170.0,108160.0,0.05667]
[1761843541461,0.39452117,108170.0,108160.0,0.05667]
[1761843541767,0.53452117,108170.0,108160.0,0.05667]
[1761843542148,0.67452117,108170.0,108160.0,0.05667]
[1761843543355,0.70772644,108170.0,108160.0,0.05667]
[1761843543557,0.20185725,108170.0,108160.0,0.41747]
[1761843543755,0.23506252,108170.0,108160.0,0.41747]
[1761843544154,0.32752032,108170.0,108160.0,0.41747]
[1761843544966,0.32752032,108170.0,108160.0,1.91747]
[1761843545565,0.29431505,108170.0,108160.0,1.91747]
[1761843550474,0.10165113,108170.0,108160.0,1.91747]
[1761843550669,0.28512172,108170.0,108160.0,2.11013392]
[1761843550975,0.0924578,108170.0,108160.0,2.30279784]
[1761843551175,0.0924578,108170.0,108160.0,2.11013392]
[1761843551769,0.28512172,108170.0,108160.0,2.11013392]
[1761843552071,0.28512172,108170.0,108160.0,1.91747]
[1761843552279,0.28512172,108170.0,108160.0,1.91847]
[1761843553670,0.28512172,108170.0,108160.0,2.23799]
[1761843553866,0.28512172,108170.0,108160.0,2.43065392]
[1761843554274,0.0924578,108170.0,108160.0,2.43065392]
[1761843554676,0.0924578,108170.0,108160.0,2.43165392]
[1761843554981,0.28512172,108170.0,108160.0,2.43165392]
[1761843555280,0.0924578,108170.0,108160.0,2.52411772]
[1761843555869,0.0428467,108170.0,108160.0,2.71678164]
[1761843556175,0.64589662,108200.0,108190.0,0.02217]
[1761843556176,0.28509662,108200.0,108190.0,0.02217]
[1761843556378,0.47776054,108200.0,108190.0,0.41893]
[1761843556673,0.28509662,108200.0,108190.0,0.61159392]
[1761843556865,0.28509662,108200.0,108190.0,0.41893]
[1761843557271,0.47776054,108200.0,108190.0,0.41893]
[1761843557470,0.5025835,108200.0,108190.0,0.41893]
[1761843557779,0.51190751,108200.0,108190.0,0.41893]
[1761843558870,0.5025835,108200.0,108190.0,0.41893]
[1761843559380,0.30991958,108200.0,108190.0,0.41893]
[1761843560283,0.28509662,108200.0,108190.0,0.41893]
[1761843560780,0.47776054,108200.0,108190.0,0.41893]
[1761843560980,0.19266392,108200.0,108190.0,0.41893]
[1761843561167,0.38532784,108200.0,108190.0,0.41893]
[1761843561372,0.19266392,108200.0,108190.0,0.73841]
[1761843562881,0.20171427,108200.0,108190.0,0.73841]
[1761843563072,0.19266392,108200.0,108190.0,0.73841]
[1761843564879,0.38532784,108200.0,108190.0,0.73841]
[1761843565083,0.02482296,108210.0,108200.0,0.05828]
[1761843565274,0.31482296,108210.0,108200.0,0.05828]
[1761843566281,0.7001508,108210.0,108200.0,0.05828]
[1761843567275,0.73335607,108210.0,108200.0,0.05828]
[1761843567474,0.7001508,108210.0,108200.0,0.05828]
[1761843568275,0.63335607,108210.0,108200.0,0.05828]
[1761843569084,0.40748688,108210.0,108200.0,0.05828]
[1761843569272,0.40718038,108210.0,108200.0,0.05828]
[1761843569680,0.41645127,108210.0,108200.0,0.05828]
[1761843570286,0.22409385,108210.0,108200.0,0.05828]
[1761843570687,0.41645127,108210.0,108200.0,0.05828]
[1761843571285,0.64201396,108210.0,108200.0,0.05828]
[1761843571484,1.00557396,108210.0,108190.0,0.41984]
[1761843571784,0.81045654,108210.0,108200.0,0.05924]
[1761843571980,0.81321654,108210.0,108200.0,0.05924]
[1761843572484,0.81045654,108210.0,108200.0,0.05924]
[1761843574993,1.00281396,108210.0,108200.0,0.05924]
[1761843575586,1.097991,108210.0,108200.0,0.05924]
[1761843576497,0.787991,108210.0,108200.0,0.05924]
[1761843576693,0.877991,108210.0,108200.0,0.05924]
[1761843577596,0.59563358,108210.0,108200.0,0.05924]
[1761843578801,0.64532627,108210.0,108200.0,0.05924]
[1761843579299,0.64532627,108210.0,108200.0,0.42004]
[1761843579300,0.23483358,108210.0,108200.0,0.42004]
[1761843580402,0.28452627,108210.0,108200.0,0.42004]
[1761843582004,0.23483358,108210.0,108200.0,0.42004]
[1761843583005,0.25483358,108210.0,108200.0,0.42004]
[1761843583202,0.23483358,108210.0,108200.0,0.42004]
[1761843583406,0.35483358,108210.0,108200.0,0.42004]
[1761843583609,0.51483358,108210.0,108200.0,0.42004]
[1761843583903,0.707191,108210.0,108200.0,0.42004]
[1761843585603,1.067991,108210.0,108200.0,0.05924]
[1761843585802,1.670751,108210.0,108200.0,0.01375]
[1761843586011,1.070751,108210.0,108190.0,0.44467241]
[1761843586203,0.51171742,108200.0,108190.0,0.44467241]
[1761843586513,0.75171742,108200.0,108190.0,0.08387241]
[1761843587706,0.54492269,108200.0,108190.0,0.08387241]
[1761843588610,0.54492269,108200.0,108190.0,0.05904]
[1761843589004,0.85492269,108200.0,108190.0,0.05904]
[1761843589413,0.85492269,108200.0,108190.0,0.08387241]
[1761843590114,0.85492269,108200.0,108190.0,0.05904]
[1761843590415,0.85492269,108200.0,108190.0,0.08387241]
[1761843591909,0.82171742,108200.0,108190.0,0.05904]
[1761843592915,0.87164464,108200.0,108190.0,0.05904]
[1761843593513,0.67928722,108200.0,108190.0,0.05904]
[1761843595118,0.35992722,108200.0,108190.0,0.25139742]
[1761843595316,0.04992722,108200.0,108190.0,0.93151742]
[1761843596221,0.08320938,108200.0,108190.0,0.93151742]
[1761843596418,0.08320938,108200.0,108190.0,1.02395562]
[1761843596609,0.03328216,108200.0,108190.0,1.02395562]
[1761843596816,0.03328216,108200.0,108190.0,1.02595562]
[1761843597016,0.03328216,108200.0,108190.0,1.62871562]
[1761843597219,0.03298086,108200.0,108190.0,1.02871562]
[1761843597521,0.03298086,108200.0,108190.0,1.05366548]
[1761843598921,0.03298086,108200.0,108190.0,1.05266548]
[1761843599122,0.03298086,108200.0,108190.0,1.05466548]
[1761843599522,8.6e-07,108200.0,108190.0,1.05466548]
[1761843599822,8.6e-07,108200.0,108190.0,1.05366548]
[1761843600024,8.6e-07,108200.0,108190.0,1.05566548]
[1761843600216,8.6e-07,108200.0,108190.0,0.86330806]
[1761843600416,8.6e-07,108200.0,108190.0,1.05290548]
[1761843600810,0.08178722,108220.0,108210.0,0.05878]
[1761843601023,0.27414464,108220.0,108210.0,0.73886]
[1761843601520,0.22421742,108220.0,108210.0,0.73886]
[1761843601718,0.22421742,108220.0,108210.0,0.41958]
[1761843602119,0.22421742,108220.0,108210.0,0.44452986]
[1761843603517,0.03186,108220.0,108210.0,0.44452986]
[1761843603713,0.01593,108220.0,108210.0,0.44452986]
[1761843603920,0.03186,108220.0,108210.0,0.44452986]
[1761843604527,0.01593,108220.0,108210.0,0.44452986]
[1761843604722,0.23329641,108230.0,108220.0,0.05878]
[1761843604926,0.51329641,108230.0,108220.0,0.05878]
[1761843605118,0.03186,108230.0,108220.0,0.41958]
[1761843605523,0.30186,108230.0,108220.0,0.05878]
[1761843605824,0.49421742,108230.0,108220.0,0.05878]
[1761843607326,0.22421742,108230.0,108220.0,0.05878]
[1761843607629,0.36056269,108240.0,108230.0,0.05878]
[1761843607828,0.36056269,108240.0,108230.0,0.41958]
[1761843608525,0.55292011,108240.0,108230.0,0.41958]
[1761843608918,0.55292011,108240.0,108230.0,0.05878]
[1761843609121,1.18372011,108240.0,108230.0,0.05878]
[1761843609415,0.03186,108230.0,108220.0,0.04546]
[1761843609614,0.03186,108210.0,108200.0,0.42163986]
[1761843609821,0.03983,108200.0,108190.0,0.05824776]
[1761843610128,0.58501742,108200.0,108190.0,0.08364986]
[1761843610429,0.90501742,108200.0,108190.0,0.08364986]
[1761843611425,0.54421742,108200.0,108190.0,0.44444986]
[1761843611629,0.36132977,108200.0,108190.0,0.44444986]
[1761843611823,0.22132977,108200.0,108190.0,0.08364986]
[1761843612024,0.62438971,108200.0,108190.0,0.08364986]
[1761843612225,0.62438971,108200.0,108190.0,0.08564986]
[1761843614127,0.99315971,108200.0,108190.0,0.02686986]
[1761843614327,0.99591971,108200.0,108190.0,0.002]
[1761843614521,0.03186,108190.0,108180.0,0.47774776]
[1761843614723,0.75415994,108190.0,108180.0,0.47774776]
[1761843614921,1.03415994,108190.0,108180.0,0.47774776]
[1761843615323,1.39495994,108190.0,108180.0,0.11694776]
[1761843615528,1.39495994,108190.0,108180.0,0.04712986]
[1761843616124,1.39495994,108190.0,108180.0,0.02486986]
[1761843617020,1.39495994,108190.0,108180.0,0.02586986]
[1761843617216,1.39771994,108190.0,108180.0,0.02586986]
[1761843617422,1.49766934,108190.0,108180.0,0.02586986]
[1761843617722,1.39495994,108190.0,108180.0,0.02686986]
[1761843618122,1.39495994,108190.0,108180.0,0.04812986]
[1761843618527,1.39495994,108190.0,108180.0,0.02586986]
[1761843619032,1.39495994,108190.0,108180.0,0.04712986]
[1761843619231,1.39495994,108190.0,108180.0,0.08414986]
[1761843619425,0.6311,108190.0,108180.0,0.08414986]
[1761843619630,0.6311,108190.0,108180.0,0.0925779]
[1761843619933,0.6311,108190.0,108180.0,0.08415399]
[1761843620130,0.6311,108190.0,108180.0,0.11745189]
[1761843620430,1.03415994,108190.0,108180.0,0.11745189]
[1761843620730,1.03415994,108190.0,108180.0,0.08415399]
[1761843621131,1.03415994,108190.0,108180.0,0.02487399]
[1761843621329,1.39771994,108190.0,108180.0,0.02487399]
[1761843621534,1.39495994,108190.0,108180.0,0.02487399]
[1761843622034,0.03186,108180.0,108170.0,0.10864689]
[1761843622226,0.61491994,108180.0,108170.0,0.10864689]
[1761843622627,0.61491994,108180.0,108170.0,0.46944689]
[1761843622628,0.21186,108180.0,108170.0,0.46944689]
[1761843623235,0.21186,108180.0,108170.0,0.47044689]
[1761843623439,0.01593,108180.0,108170.0,0.42083]
[1761843623636,0.7119,108190.0,108180.0,0.05844]
[1761843623842,1.04194,108190.0,108180.0,0.14137201]
[1761843624023,0.68114,108190.0,108180.0,0.14137201]
[1761843624229,0.68114,108190.0,108180.0,0.46899921]
[1761843625634,0.35114,108190.0,108180.0,0.46899921]
[1761843625833,0.3608,108210.0,108200.0,0.05844]
[1761843625834,0.39266,108210.0,108200.0,0.05844]
[1761843626038,0.65114,108210.0,108200.0,0.08331828]
[1761843626341,1.05419994,108210.0,108200.0,0.08331828]
[1761843628330,1.41499994,108210.0,108200.0,0.02487828]
[1761843629734,2.11770934,108210.0,108200.0,0.02487828]
[1761843629939,1.51770934,108210.0,108200.0,0.02487828]
[1761843631438,1.35520021,108210.0,108200.0,0.02487828]
[1761843632037,0.03186,108200.0,108190.0,0.08331828]
[1761843632239,0.93321081,108200.0,108190.0,0.08331828]
[1761843633341,0.93321081,108200.0,108190.0,0.08431828]
[1761843633739,0.93321081,108200.0,108190.0,0.08531828]
[1761843634040,0.93321081,108200.0,108190.0,0.08431828]
[1761843634438,0.93321081,108200.0,108190.0,0.08331828]
[1761843635240,0.96608703,108200.0,108190.0,0.02487828]
[1761843635940,0.96608703,108200.0,108190.0,0.04776828]
[1761843636333,0.96608703,108200.0,108190.0,0.02487828]
[1761843636639,0.03186,108190.0,108180.0,0.09411933]
[1761843636836,0.93169081,108190.0,108180.0,0.09411933]
[1761843637032,0.93169081,108190.0,108180.0,0.08331828]
[1761843637241,0.93169081,108190.0,108180.0,0.11648933]
[1761843637737,1.29249081,108190.0,108180.0,0.05804933]
[1761843637937,1.29249081,108190.0,108180.0,0.04776828]
[1761843638137,1.29249081,108190.0,108180.0,0.04876828]
[1761843638445,0.97321081,108190.0,108180.0,0.08431828]
[1761843638636,0.69114,108190.0,108180.0,0.09261105]
[1761843639233,0.69114,108190.0,108180.0,0.09361105]
[1761843640236,0.69114,108190.0,108180.0,0.09261105]
[1761843640439,0.93169081,108190.0,108180.0,0.09261105]
[1761843641142,0.93169081,108190.0,108180.0,0.09361105]
[1761843641944,0.93169081,108190.0,108180.0,0.11019921]
[1761843646045,1.29249081,108190.0,108180.0,0.05175921]
[1761843646346,1.29249081,108190.0,108180.0,0.04975921]
[1761843646546,1.29249081,108190.0,108180.0,0.05075921]
[1761843647143,1.29249081,108190.0,108180.0,0.04975921]
[1761843647445,1.29249081,108190.0,108180.0,0.07264921]
[1761843647645,0.95249081,108190.0,108180.0,0.10819921]
[1761843647835,1.23249081,108190.0,108180.0,0.10819921]
[1761843648035,1.23249081,108190.0,108180.0,0.05844]
[1761843648036,1.25739703,108190.0,108180.0,0.05844]
[1761843648440,0.03186,108180.0,108170.0,0.45306239]
[1761843649141,0.14186,108180.0,108170.0,0.45306239]
[1761843649346,0.49430187,108180.0,108170.0,0.45306239]
[1761843649546,0.68674374,108180.0,108170.0,0.45406239]
[1761843649740,0.22430187,108180.0,108170.0,0.45406239]
[1761843650248,0.22430187,108180.0,108170.0,0.45506239]
[1761843650449,0.22430187,108180.0,108170.0,0.64750426]
[1761843650747,0.22430187,108180.0,108170.0,0.45506239]
[1761843651149,0.22430187,108180.0,108170.0,0.42183]
[1761843651450,0.20837187,108180.0,108170.0,0.42183]
[1761843651846,0.20837187,108180.0,108170.0,0.61427187]
[1761843652053,0.92928809,108190.0,108180.0,0.05791]
[1761843652348,1.23928809,108190.0,108180.0,0.05791]
[1761843652552,0.87848809,108190.0,108180.0,0.05791]
[1761843653053,1.23928809,108190.0,108180.0,0.04394]
[1761843653251,1.23928809,108190.0,108180.0,0.02127]
[1761843653653,1.23928809,108190.0,108180.0,0.04394]
[1761843653952,1.23928809,108190.0,108180.0,0.05791]
[1761843655458,1.43172996,108190.0,108170.0,0.37457]
[1761843655645,0.41674374,108180.0,108170.0,0.41851]
[1761843655841,0.70674374,108180.0,108170.0,0.05771]
[1761843656048,0.03186,108170.0,108160.0,0.45115239]
[1761843656249,0.60114,108170.0,108160.0,0.45115239]
[1761843656456,0.79358187,108170.0,108160.0,0.45115239]
[1761843657348,0.79358187,108170.0,108160.0,0.45315239]
[1761843657743,0.79358187,108170.0,108160.0,0.64559426]
[1761843657744,0.5528884,108170.0,108160.0,0.64559426]
[1761843657950,0.5528884,108170.0,108160.0,0.45315239]
[1761843658351,0.5528884,108170.0,108160.0,0.41992]
[1761843658556,0.7128884,108170.0,108160.0,0.41992]
[1761843658757,0.5528884,108170.0,108160.0,0.41992]
[1761843659455,0.36044653,108170.0,108160.0,0.41992]
[1761843660156,0.39266,108180.0,108170.0,0.05791]
[1761843660356,0.67118,108180.0,108170.0,0.05791]
[1761843660558,0.68034378,108180.0,108170.0,0.05791]
[1761843661056,0.92093945,108180.0,108170.0,0.05791]
[1761843661858,0.60093945,108180.0,108170.0,0.05791]
[1761843662158,0.65093945,108180.0,108170.0,0.05791]
[1761843662560,0.41034378,108180.0,108170.0,0.05791]
[1761843662760,0.41034378,108180.0,108170.0,0.41871]
[1761843663460,1.26173945,108180.0,108170.0,0.05791]
[1761843664551,1.29461567,108180.0,108160.0,0.37398]
[1761843664747,0.27245567,108170.0,108160.0,0.41792]
[1761843664947,0.39245567,108170.0,108160.0,0.41792]
[1761843665356,0.55245567,108170.0,108160.0,0.39525]
[1761843665554,0.55245567,108170.0,108160.0,0.03445]
[1761843665754,0.55245567,108170.0,108160.0,0.05712]
[1761843666263,0.55245567,108170.0,108160.0,0.05912]
[1761843666761,0.55245567,108170.0,108160.0,0.05812]
[1761843666963,0.55245567,108170.0,108160.0,0.05912]
[1761843667157,0.91325567,108170.0,108160.0,0.05912]
[1761843667358,0.91325567,108170.0,108160.0,0.002]
[1761843667563,0.91325567,108170.0,108160.0,0.05991]
[1761843667863,0.68325567,108170.0,108160.0,0.05991]
[1761843668763,0.08186,108170.0,108160.0,0.05991]
[1761843668962,0.40118,108170.0,108160.0,0.05991]
[1761843669662,0.40118,108170.0,108160.0,0.42071]
[1761843669861,0.35118,108170.0,108160.0,0.42071]
[1761843671060,0.48118,108170.0,108160.0,0.42071]
[1761843671260,0.72177567,108170.0,108160.0,0.42071]
[1761843671565,0.59177567,108170.0,108160.0,0.42071]
[1761843671765,0.71177567,108170.0,108160.0,0.42071]
[1761843671968,0.89177567,108170.0,108160.0,0.42071]
[1761843672366,0.59177567,108170.0,108160.0,0.42071]
[1761843673362,0.35118,108170.0,108160.0,0.42071]
[1761843673763,0.46118,108170.0,108160.0,0.42071]
[1761843674159,0.70177567,108170.0,108160.0,0.42071]